[Event "Live Chess"]
[Site "Chess.com"]
[Date "2023.09.16"]
[Round "-"]
[White "VitorEMS"]
[Black "PedroRossi14"]
[Result "1-0"]
[WhiteElo "737"]
[BlackElo "518"]
[TimeControl "900+5"]
[EndTime "7:03:07 PDT"]
[Termination "VitorEMS venceu por desistência"]

1. e4 {[%clk 0:15:02.1]} 1... c6 {[%clk 0:15:03.5]} 2. d4 {[%clk 0:15:02.4]}
2... d5 {[%clk 0:15:06.5]} 3. e5 {[%clk 0:15:03]} 3... Bf5 {[%clk 0:15:08.8]} 4.
Nf3 {[%clk 0:15:05.8]} 4... e6 {[%clk 0:15:10.6]} 5. Nc3 {[%clk 0:15:04.7]} 5...
Be7 {[%clk 0:15:10.1]} 6. Bf4 {[%clk 0:15:03.6]} 6... Nd7 {[%clk 0:15:09.9]} 7.
Be2 {[%clk 0:14:56]} 7... c5 {[%clk 0:15:04.5]} 8. O-O {[%clk 0:14:28.8]} 8...
cxd4 {[%clk 0:15:06.7]} 9. Nxd4 {[%clk 0:14:29.6]} 9... Bg6 {[%clk 0:15:08.2]}
10. Qd2 {[%clk 0:13:24.5]} 10... Bc5 {[%clk 0:15:06.6]} 11. f3 {[%clk
0:13:13.3]} 11... Ne7 {[%clk 0:15:09.6]} 12. Kh1 {[%clk 0:12:57.9]} 12... O-O
{[%clk 0:15:11.6]} 13. Nb3 {[%clk 0:12:28.4]} 13... Bb6 {[%clk 0:15:12.5]} 14.
Be3 {[%clk 0:12:27]} 14... Bxe3 {[%clk 0:15:09.5]} 15. Qxe3 {[%clk 0:12:27.4]}
15... Nf5 {[%clk 0:15:12.3]} 16. Qf2 {[%clk 0:12:27.5]} 16... Nxe5 {[%clk
0:15:06.5]} 17. f4 {[%clk 0:12:21.6]} 17... Nc4 {[%clk 0:15:03.6]} 18. Rab1
{[%clk 0:12:19.2]} 18... Nce3 {[%clk 0:14:59.8]} 19. Rfe1 {[%clk 0:12:16.5]}
19... Nxc2 {[%clk 0:14:49.8]} 20. Red1 {[%clk 0:12:13.9]} 20... Nce3 {[%clk
0:14:49.8]} 21. Re1 {[%clk 0:12:12.5]} 21... Rb8 {[%clk 0:14:43.7]} 22. Nd1
{[%clk 0:11:33]} 22... d4 {[%clk 0:14:46.2]} 23. Nxe3 {[%clk 0:11:31.1]} 23...
dxe3 {[%clk 0:14:49.4]} 24. Qf3 {[%clk 0:11:32.2]} 24... a6 {[%clk 0:14:37.7]}
25. Red1 {[%clk 0:11:32.1]} 25... Qb6 {[%clk 0:14:29.8]} 26. Kg1 {[%clk
0:10:55.8]} 26... Nh4 {[%clk 0:14:20.7]} 27. Qg3 {[%clk 0:10:53.9]} 27... Nf5
{[%clk 0:14:21.7]} 28. Qf3 {[%clk 0:10:55]} 28... Rfd8 {[%clk 0:14:12.7]} 29.
Rdc1 {[%clk 0:10:54.5]} 29... Rd7 {[%clk 0:14:08.8]} 30. Re1 {[%clk 0:10:08.7]}
30... Rbd8 {[%clk 0:14:09.2]} 31. Ra1 {[%clk 0:10:08.8]} 31... Nd4 {[%clk
0:14:04.4]} 32. Qxe3 {[%clk 0:09:49.1]} 32... Nxe2+ {[%clk 0:14:06]} 33. Rxe2
{[%clk 0:09:44]} 33... Qxe3+ {[%clk 0:14:05.1]} 34. Rxe3 {[%clk 0:09:45.6]}
34... Bc2 {[%clk 0:13:54.2]} 35. Nc5 {[%clk 0:09:40.1]} 35... Rd5 {[%clk
0:13:52.8]} 36. Nxb7 {[%clk 0:09:25.3]} 36... R8d7 {[%clk 0:13:46.5]} 37. Na5
{[%clk 0:09:26.1]} 37... Rxa5 {[%clk 0:13:49.2]} 38. b4 {[%clk 0:09:15.9]} 38...
Rad5 {[%clk 0:13:49.6]} 39. Ree1 {[%clk 0:09:13.9]} 39... Bd1 {[%clk 0:13:44.2]}
40. f5 {[%clk 0:09:11.3]} 40... h6 {[%clk 0:13:43.4]} 41. fxe6 {[%clk
0:09:13.1]} 41... fxe6 {[%clk 0:13:46.3]} 42. Rxe6 {[%clk 0:09:14.3]} 42... Bg4
{[%clk 0:13:46.9]} 43. Re8+ {[%clk 0:09:15.1]} 43... Kh7 {[%clk 0:13:49.9]} 44.
Ree1 {[%clk 0:09:07.9]} 44... h5 {[%clk 0:13:45.9]} 45. h3 {[%clk 0:07:39.8]}
45... Bf5 {[%clk 0:13:46.1]} 46. a4 {[%clk 0:07:15]} 46... a5 {[%clk 0:13:46.7]}
47. b5 {[%clk 0:07:10.5]} 47... g5 {[%clk 0:13:37.3]} 48. b6 {[%clk 0:07:11.8]}
48... g4 {[%clk 0:13:36.2]} 49. hxg4 {[%clk 0:07:08.9]} 49... Bxg4 {[%clk
0:13:37.6]} 50. Rab1 {[%clk 0:07:09.9]} 50... Rb7 {[%clk 0:13:39.9]} 51. Re8
{[%clk 0:06:45.3]} 51... Rd4 {[%clk 0:13:39.2]} 52. Ra8 {[%clk 0:06:20.3]} 52...
Rxa4 {[%clk 0:13:41.1]} 53. Ra7 {[%clk 0:05:33.2]} 53... Bf5 {[%clk 0:13:33.6]}
54. Rxb7+ {[%clk 0:05:33.2]} 54... Kh6 {[%clk 0:13:35.3]} 55. Rf1 {[%clk
0:05:33.9]} 55... Be4 {[%clk 0:13:35.8]} 56. Rf6+ {[%clk 0:05:31.3]} 1-0

[Event "Live Chess"]
[Site "Chess.com"]
[Date "2023.09.16"]
[Round "-"]
[White "RyanDiniz2011"]
[Black "Alplee"]
[Result "1/2-1/2"]
[WhiteElo "1554"]
[BlackElo "1965"]
[TimeControl "900+5"]
[EndTime "7:04:40 PDT"]
[Termination "Partida empatada por acordo"]

1. d4 {[%clk 0:15:03]} 1... Nf6 {[%clk 0:15:02.8]} 2. c4 {[%clk 0:15:04.8]} 2...
e6 {[%clk 0:15:06.4]} 3. Nc3 {[%clk 0:15:08.3]} 3... d5 {[%clk 0:15:10]} 4. Bf4
{[%clk 0:15:10.9]} 4... Bb4 {[%clk 0:15:05.6]} 5. e3 {[%clk 0:15:13.5]} 5...
Bxc3+ {[%clk 0:14:54.2]} 6. bxc3 {[%clk 0:15:16.2]} 6... O-O {[%clk 0:14:57.6]}
7. Nf3 {[%clk 0:15:16.8]} 7... b6 {[%clk 0:14:58.4]} 8. Qc2 {[%clk 0:15:17]}
8... Ba6 {[%clk 0:14:53.9]} 9. Nd2 {[%clk 0:14:54.9]} 9... Nbd7 {[%clk
0:14:24.8]} 10. Be2 {[%clk 0:14:54]} 10... dxc4 {[%clk 0:14:16.5]} 11. Bg5
{[%clk 0:14:29.9]} 11... h6 {[%clk 0:14:15.6]} 12. Bxf6 {[%clk 0:14:29.9]} 12...
Nxf6 {[%clk 0:14:19.2]} 13. Bxc4 {[%clk 0:14:33.6]} 13... Bxc4 {[%clk
0:14:20.7]} 14. Nxc4 {[%clk 0:14:35.8]} 14... Qd5 {[%clk 0:14:24.1]} 15. Ne5
{[%clk 0:14:07.7]} 15... Qxg2 {[%clk 0:14:20.6]} 16. Ke2 {[%clk 0:14:00.6]}
16... Qe4 {[%clk 0:13:31.6]} 17. Qd2 {[%clk 0:13:35.8]} 17... Rfd8 {[%clk
0:13:02.3]} 18. Rhg1 {[%clk 0:13:23.7]} 18... Nd7 {[%clk 0:12:44.2]} 19. Ng4
{[%clk 0:12:54.7]} 19... Kh7 {[%clk 0:12:34.8]} 20. f3 {[%clk 0:12:50.3]} 20...
Qc6 {[%clk 0:12:31]} 21. Qd3+ {[%clk 0:12:13.9]} 21... Kh8 {[%clk 0:12:24.7]}
22. Rg3 {[%clk 0:12:03.5]} 22... b5 {[%clk 0:09:26.7]} 23. Rag1 {[%clk
0:11:54.8]} 23... Qc4 {[%clk 0:07:46.1]} 24. Rh3 {[%clk 0:11:55.5]} 24... Qxd3+
{[%clk 0:07:37.6]} 25. Kxd3 {[%clk 0:11:58.3]} 25... Kh7 {[%clk 0:07:18.7]} 26.
Rhg3 {[%clk 0:11:45]} 26... g6 {[%clk 0:06:28.4]} 27. h4 {[%clk 0:11:37.5]}
27... h5 {[%clk 0:06:09.3]} 28. Nf2 {[%clk 0:11:35.6]} 28... e5 {[%clk
0:06:02.3]} 29. Ne4 {[%clk 0:11:33.6]} 29... Rab8 {[%clk 0:05:04.6]} 30. a3
{[%clk 0:11:15.6]} 30... Rb6 {[%clk 0:05:03.9]} 31. Kc2 {[%clk 0:11:15]} 31...
exd4 {[%clk 0:05:06.4]} 32. exd4 {[%clk 0:11:16.3]} 32... Nf6 {[%clk 0:05:07.9]}
33. Ng5+ {[%clk 0:11:16.2]} 33... Kg7 {[%clk 0:05:10.1]} 34. Re1 {[%clk
0:11:15.4]} 34... Re8 {[%clk 0:05:05.6]} 35. Rgg1 {[%clk 0:11:17.1]} 35... Rbb8
{[%clk 0:04:50.6]} 36. Ne4 {[%clk 0:10:49.6]} 36... Nxe4 {[%clk 0:04:25]} 37.
Rxe4 {[%clk 0:10:51.1]} 37... f5 {[%clk 0:04:04.2]} 38. Rxe8 {[%clk 0:10:27.2]}
38... Rxe8 {[%clk 0:04:07.1]} 39. Kd3 {[%clk 0:10:09.5]} 39... Kf6 {[%clk
0:04:08.8]} 40. Rb1 {[%clk 0:10:09.2]} 40... a6 {[%clk 0:04:07]} 41. c4 {[%clk
0:10:03.4]} 41... c6 {[%clk 0:04:09.3]} 42. d5 {[%clk 0:10:00.6]} 42... cxd5
{[%clk 0:03:49.8]} 43. cxb5 {[%clk 0:10:00.4]} 43... Rd8 {[%clk 0:03:50.9]} 44.
bxa6 {[%clk 0:09:54]} 44... Ra8 {[%clk 0:03:51.7]} 45. Rb7 {[%clk 0:09:56.9]}
45... Rxa6 {[%clk 0:03:53.9]} 46. Rb3 {[%clk 0:09:51.3]} 46... Ra4 {[%clk
0:03:57]} 47. Ke3 {[%clk 0:09:50.1]} 47... Rxh4 {[%clk 0:03:59.9]} 48. Rb6+
{[%clk 0:09:52.5]} 48... Kg5 {[%clk 0:04:01.1]} 49. Ra6 {[%clk 0:09:52.2]} 49...
Rc4 {[%clk 0:03:57.1]} 50. a4 {[%clk 0:09:54.3]} 50... h4 {[%clk 0:03:57.3]} 51.
a5 {[%clk 0:09:56.2]} 51... h3 {[%clk 0:04:00.5]} 52. Ra8 {[%clk 0:10:00.7]}
52... Ra4 {[%clk 0:04:00.5]} 53. Rh8 {[%clk 0:10:02.7]} 53... Rxa5 {[%clk
0:03:54.6]} 54. Rxh3 {[%clk 0:10:05.7]} 54... Ra3+ {[%clk 0:03:59]} 55. Kd4
{[%clk 0:10:09]} 55... Ra5 {[%clk 0:03:57]} 56. Ke5 {[%clk 0:09:57.5]} 56... d4+
{[%clk 0:03:26.7]} 57. Kxd4 {[%clk 0:09:58.2]} 57... Ra4+ {[%clk 0:03:30.2]} 58.
Ke3 {[%clk 0:10:00.8]} 58... Rh4 {[%clk 0:03:30.2]} 59. Rg3+ {[%clk 0:10:02.8]}
59... Kf6 {[%clk 0:03:33.8]} 60. f4 {[%clk 0:10:03.6]} 60... Rg4 {[%clk
0:03:30.3]} 61. Rh3 {[%clk 0:09:49.9]} 61... Ke6 {[%clk 0:03:23.7]} 62. Kf3
{[%clk 0:09:45.7]} 62... Kd5 {[%clk 0:03:22.7]} 63. Rh1 {[%clk 0:09:35.8]} 63...
Kc4 {[%clk 0:03:09.7]} 64. Rc1+ {[%clk 0:09:35.9]} 64... Kd5 {[%clk 0:03:12]}
65. Rd1+ {[%clk 0:09:37.2]} 65... Kc4 {[%clk 0:03:04.4]} 66. Rd6 {[%clk
0:09:30.3]} 1/2-1/2

[Event "Live Chess"]
[Site "Chess.com"]
[Date "2023.09.16"]
[Round "-"]
[White "guilhermemazza"]
[Black "Rafael-2021"]
[Result "0-1"]
[WhiteElo "479"]
[BlackElo "1087"]
[TimeControl "900+5"]
[EndTime "7:05:47 PDT"]
[Termination "Rafael-2021 venceu por desistência"]

1. e4 {[%clk 0:15:00.4]} 1... e5 {[%clk 0:15:02.6]} 2. Nf3 {[%clk 0:15:01.6]}
2... Nc6 {[%clk 0:15:05.7]} 3. d4 {[%clk 0:14:59.4]} 3... exd4 {[%clk
0:14:59.8]} 4. Nxd4 {[%clk 0:15:01.7]} 4... Nf6 {[%clk 0:14:58.6]} 5. Nxc6
{[%clk 0:15:05.1]} 5... bxc6 {[%clk 0:15:01.8]} 6. e5 {[%clk 0:15:06.8]} 6...
Ne4 {[%clk 0:14:54.9]} 7. e6 {[%clk 0:15:05.4]} 7... dxe6 {[%clk 0:14:48.5]} 8.
f3 {[%clk 0:15:07.9]} 8... Qxd1+ {[%clk 0:14:47.8]} 9. Kxd1 {[%clk 0:15:09.5]}
9... Nf2+ {[%clk 0:14:51.7]} 10. Ke2 {[%clk 0:15:11.5]} 10... Nxh1 {[%clk
0:14:55.6]} 11. Bg5 {[%clk 0:15:06.8]} 11... Ba6+ {[%clk 0:14:55.6]} 12. Ke1
{[%clk 0:15:08.4]} 12... Bxf1 {[%clk 0:14:56.2]} 13. Kxf1 {[%clk 0:15:11.3]}
13... Bc5 {[%clk 0:14:58.6]} 14. Nd2 {[%clk 0:15:09.6]} 14... O-O {[%clk
0:14:59.3]} 15. Ke2 {[%clk 0:15:12.1]} 15... f6 {[%clk 0:15:02.2]} 16. Rxh1
{[%clk 0:15:15]} 16... fxg5 {[%clk 0:14:56.7]} 17. h4 {[%clk 0:15:16.2]} 17...
gxh4 {[%clk 0:14:57.3]} 18. Rxh4 {[%clk 0:15:19.1]} 18... Rab8 {[%clk
0:14:59.1]} 19. Ne4 {[%clk 0:15:19.9]} 19... Be7 {[%clk 0:14:56.1]} 20. Rh5
{[%clk 0:15:18.5]} 20... Rxb2 {[%clk 0:14:57.3]} 21. g4 {[%clk 0:15:21.2]} 21...
Rxc2+ {[%clk 0:14:59.5]} 22. Nd2 {[%clk 0:15:24.4]} 22... Bb4 {[%clk 0:14:58.7]}
23. g5 {[%clk 0:15:24.2]} 23... Rxd2+ {[%clk 0:15:02.1]} 24. Ke3 {[%clk
0:15:25.9]} 24... Rd5 {[%clk 0:14:58.7]} 25. Ke4 {[%clk 0:15:25.9]} 25... g6
{[%clk 0:14:55]} 26. Rh6 {[%clk 0:15:25.1]} 26... Rxg5 {[%clk 0:14:55.8]} 27. f4
{[%clk 0:15:26.5]} 27... Rg4 {[%clk 0:14:58.3]} 0-1

[Event "Live Chess"]
[Site "Chess.com"]
[Date "2023.09.16"]
[Round "-"]
[White "SaladaChess"]
[Black "Sabadin21"]
[Result "1-0"]
[WhiteElo "1113"]
[BlackElo "877"]
[TimeControl "900+5"]
[EndTime "7:06:39 PDT"]
[Termination "SaladaChess venceu por desistência"]

1. c4 {[%clk 0:15:02.8]} 1... e5 {[%clk 0:15:03.9]} 2. Nc3 {[%clk 0:15:06.2]}
2... Nc6 {[%clk 0:15:07.8]} 3. Nf3 {[%clk 0:15:09.1]} 3... Nf6 {[%clk
0:15:11.9]} 4. d4 {[%clk 0:15:09.7]} 4... exd4 {[%clk 0:15:12.5]} 5. Nxd4 {[%clk
0:15:06.1]} 5... Nxd4 {[%clk 0:15:06.6]} 6. Qxd4 {[%clk 0:15:09.4]} 6... Be7
{[%clk 0:15:09.8]} 7. e4 {[%clk 0:15:06.3]} 7... O-O {[%clk 0:15:10.8]} 8. Be2
{[%clk 0:14:55.6]} 8... d6 {[%clk 0:15:10]} 9. O-O {[%clk 0:14:57.4]} 9... Be6
{[%clk 0:15:11.2]} 10. Qe3 {[%clk 0:14:48.7]} 10... b6 {[%clk 0:15:09]} 11. Qg3
{[%clk 0:14:50.4]} 11... g6 {[%clk 0:15:02.9]} 12. Bh6 {[%clk 0:14:53.2]} 12...
Re8 {[%clk 0:15:05.7]} 13. Bf3 {[%clk 0:14:21.5]} 13... Bf8 {[%clk 0:15:06.9]}
14. Bxf8 {[%clk 0:14:24.6]} 14... Rxf8 {[%clk 0:15:10.3]} 15. Qg5 {[%clk
0:14:02.6]} 15... Nd7 {[%clk 0:14:43.9]} 16. Qxd8 {[%clk 0:13:54.7]} 16... Raxd8
{[%clk 0:14:46.5]} 17. b3 {[%clk 0:13:40.4]} 17... Nc5 {[%clk 0:14:34]} 18. Rad1
{[%clk 0:13:13.2]} 18... Na6 {[%clk 0:14:04.4]} 19. Nd5 {[%clk 0:13:07.7]} 19...
Bxd5 {[%clk 0:14:06.2]} 20. exd5 {[%clk 0:13:07.3]} 20... Nb4 {[%clk 0:14:10.4]}
21. a3 {[%clk 0:13:05.5]} 21... Na6 {[%clk 0:14:08.9]} 22. b4 {[%clk 0:13:02.5]}
22... Nb8 {[%clk 0:14:10.4]} 23. Rfe1 {[%clk 0:13:05.5]} 23... Rde8 {[%clk
0:14:12.9]} 24. h3 {[%clk 0:13:06.2]} 24... Rxe1+ {[%clk 0:14:15.2]} 25. Rxe1
{[%clk 0:13:09.9]} 25... Nd7 {[%clk 0:14:16.9]} 26. Re7 {[%clk 0:13:12.9]} 26...
Nb8 {[%clk 0:14:13.3]} 27. Rxc7 {[%clk 0:13:12.7]} 27... Re8 {[%clk 0:13:59.1]}
28. Kf1 {[%clk 0:13:04.2]} 28... Rd8 {[%clk 0:13:49.4]} 29. Rxa7 {[%clk
0:13:06.5]} 29... Nd7 {[%clk 0:13:53.2]} 30. Bg4 {[%clk 0:13:05.4]} 30... Nf6
{[%clk 0:13:53.1]} 31. Ra6 {[%clk 0:12:59.6]} 31... Nxg4 {[%clk 0:13:54.4]} 32.
hxg4 {[%clk 0:13:03.2]} 32... Re8 {[%clk 0:13:57.9]} 33. Rxb6 {[%clk 0:13:03.8]}
33... Re4 {[%clk 0:14:01.9]} 34. c5 {[%clk 0:13:05.7]} 34... dxc5 {[%clk
0:14:03.9]} 35. bxc5 {[%clk 0:13:09.4]} 35... Rxg4 {[%clk 0:14:05.4]} 36. c6
{[%clk 0:13:12.6]} 36... Rd4 {[%clk 0:14:05.6]} 37. c7 {[%clk 0:13:13]} 37...
Rd1+ {[%clk 0:14:05.4]} 38. Ke2 {[%clk 0:13:15]} 38... Rc1 {[%clk 0:14:09.8]}
39. Rb8+ {[%clk 0:13:17.6]} 39... Kg7 {[%clk 0:14:11.6]} 40. c8=Q {[%clk
0:13:21.3]} 40... Rxc8 {[%clk 0:14:16]} 41. Rxc8 {[%clk 0:13:24.9]} 41... Kf6
{[%clk 0:14:19.4]} 42. d6 {[%clk 0:13:28]} 42... Ke6 {[%clk 0:14:23.3]} 43. Rc7
{[%clk 0:13:29.5]} 43... Kxd6 {[%clk 0:14:27]} 44. Rxf7 {[%clk 0:13:33.6]} 44...
Kc5 {[%clk 0:14:31.1]} 45. Rxh7 {[%clk 0:13:37.5]} 45... Kc4 {[%clk 0:14:35.8]}
46. Rh6 {[%clk 0:13:41.6]} 46... Kb3 {[%clk 0:14:40.2]} 47. Rxg6 {[%clk
0:13:45.7]} 47... Kxa3 {[%clk 0:14:44.8]} 48. f4 {[%clk 0:13:49.6]} 48... Kb4
{[%clk 0:14:49.3]} 49. f5 {[%clk 0:13:53.9]} 49... Kc5 {[%clk 0:14:53.9]} 50. f6
{[%clk 0:13:58.3]} 50... Kd5 {[%clk 0:14:58.6]} 51. f7 {[%clk 0:14:02.7]} 51...
Ke5 {[%clk 0:15:03.3]} 52. f8=Q {[%clk 0:14:06.5]} 1-0

[Event "Live Chess"]
[Site "Chess.com"]
[Date "2023.09.16"]
[Round "-"]
[White "AnaHelenaAulicino"]
[Black "isanamie12"]
[Result "1/2-1/2"]
[WhiteElo "623"]
[BlackElo "801"]
[TimeControl "900+5"]
[EndTime "7:06:49 PDT"]
[Termination "Empate por repetição"]

1. e4 {[%clk 0:15:03.1]} 1... e5 {[%clk 0:15:00.4]} 2. Nf3 {[%clk 0:15:05.7]}
2... Nc6 {[%clk 0:15:03.7]} 3. Bc4 {[%clk 0:15:05]} 3... Bc5 {[%clk 0:15:07.1]}
4. d3 {[%clk 0:15:08]} 4... Nf6 {[%clk 0:15:06.8]} 5. Ng5 {[%clk 0:15:08]} 5...
O-O {[%clk 0:15:09.4]} 6. O-O {[%clk 0:15:07.8]} 6... h6 {[%clk 0:15:09.7]} 7.
Nf3 {[%clk 0:15:08]} 7... d5 {[%clk 0:15:07.9]} 8. exd5 {[%clk 0:15:08.8]} 8...
Nxd5 {[%clk 0:15:09.4]} 9. Nc3 {[%clk 0:15:01.9]} 9... Nxc3 {[%clk 0:15:07]} 10.
bxc3 {[%clk 0:15:03.3]} 10... Qf6 {[%clk 0:15:06.3]} 11. Re1 {[%clk 0:14:46.7]}
11... e4 {[%clk 0:14:58.2]} 12. Rxe4 {[%clk 0:14:38.5]} 12... Qxc3 {[%clk
0:14:54.1]} 13. Rb1 {[%clk 0:14:35]} 13... Qf6 {[%clk 0:14:48.6]} 14. g3 {[%clk
0:14:15.4]} 14... Nd4 {[%clk 0:14:32.9]} 15. Nxd4 {[%clk 0:14:16.1]} 15... Bxd4
{[%clk 0:14:33.8]} 16. Rf4 {[%clk 0:14:03.3]} 16... Qd6 {[%clk 0:14:04.2]} 17.
Bb2 {[%clk 0:13:37.5]} 17... Bxb2 {[%clk 0:13:48.8]} 18. Rxb2 {[%clk 0:13:37.3]}
18... b6 {[%clk 0:13:53.4]} 19. Qf3 {[%clk 0:13:26.4]} 19... Rb8 {[%clk
0:13:33.1]} 20. Bxf7+ {[%clk 0:13:25.3]} 20... Rxf7 {[%clk 0:13:36.4]} 21. Rxf7
{[%clk 0:13:27.4]} 21... Qe6 {[%clk 0:12:51.5]} 22. Rxc7 {[%clk 0:13:26.2]}
22... Qe1+ {[%clk 0:12:43.8]} 23. Kg2 {[%clk 0:13:28]} 23... Qc1 {[%clk
0:12:07.1]} 24. Rb3 {[%clk 0:12:58.1]} 24... a5 {[%clk 0:11:53.1]} 25. Qd5+
{[%clk 0:12:45]} 25... Kh8 {[%clk 0:11:38.9]} 26. Qd8+ {[%clk 0:12:38.5]} 26...
Kh7 {[%clk 0:11:40]} 27. Rxc8 {[%clk 0:12:36]} 27... Rxc8 {[%clk 0:11:18.2]} 28.
Qxc8 {[%clk 0:12:37.1]} 28... Qg5 {[%clk 0:11:18.5]} 29. Rxb6 {[%clk 0:12:33.8]}
29... Qd5+ {[%clk 0:11:19.2]} 30. Kf1 {[%clk 0:12:31.8]} 30... Qh1+ {[%clk
0:11:10.1]} 31. Ke2 {[%clk 0:12:34.8]} 31... Qxh2 {[%clk 0:11:07.2]} 32. c4
{[%clk 0:12:24.7]} 32... Qh5+ {[%clk 0:11:09]} 33. Kf1 {[%clk 0:12:20.5]} 33...
Qh1+ {[%clk 0:11:04.3]} 34. Ke2 {[%clk 0:12:20.4]} 34... Qh5+ {[%clk 0:11:07]}
35. Ke3 {[%clk 0:12:23.5]} 35... Qg5+ {[%clk 0:10:59.8]} 36. Kf3 {[%clk
0:12:22.9]} 36... Qh5+ {[%clk 0:10:49.1]} 37. Kg2 {[%clk 0:11:30]} 37... Qf7
{[%clk 0:10:37.4]} 38. Rb8 {[%clk 0:11:16.7]} 38... Kg6 {[%clk 0:10:07.3]} 39.
Rb6+ {[%clk 0:11:07.2]} 39... Kh7 {[%clk 0:10:05.3]} 40. c5 {[%clk 0:10:48.6]}
40... Qd5+ {[%clk 0:10:02.9]} 41. Kf1 {[%clk 0:10:48.8]} 41... Qxd3+ {[%clk
0:10:00.1]} 42. Ke1 {[%clk 0:10:50.6]} 42... Qc3+ {[%clk 0:09:55.8]} 43. Kf1
{[%clk 0:10:45.7]} 43... Qd3+ {[%clk 0:09:51.7]} 44. Kg1 {[%clk 0:10:46.9]}
44... Qd1+ {[%clk 0:09:43.7]} 45. Kg2 {[%clk 0:10:48.8]} 45... Qd5+ {[%clk
0:09:46.5]} 46. Kh2 {[%clk 0:10:48.6]} 46... Qh5+ {[%clk 0:09:45.4]} 47. Kg2
{[%clk 0:10:49.8]} 47... Qd5+ {[%clk 0:09:48.4]} 48. Kh2 {[%clk 0:10:53.5]}
48... Qh5+ {[%clk 0:09:52]} 49. Kg2 {[%clk 0:10:57.5]} 49... Qd5+ {[%clk
0:09:55.4]} 1/2-1/2

[Event "Live Chess"]
[Site "Chess.com"]
[Date "2023.09.16"]
[Round "-"]
[White "asafefausto"]
[Black "pedromiguelchess"]
[Result "0-1"]
[WhiteElo "652"]
[BlackElo "1095"]
[TimeControl "900+5"]
[EndTime "7:08:59 PDT"]
[Termination "pedromiguelchess venceu por xeque-mate"]

1. d4 {[%clk 0:14:58.2]} 1... Nf6 {[%clk 0:15:01.5]} 2. Nc3 {[%clk 0:14:56.7]}
2... e6 {[%clk 0:14:53.8]} 3. f3 {[%clk 0:14:52.3]} 3... c5 {[%clk 0:14:51.7]}
4. e4 {[%clk 0:14:45.8]} 4... cxd4 {[%clk 0:14:46.9]} 5. Qxd4 {[%clk 0:14:47.7]}
5... Nc6 {[%clk 0:14:51.3]} 6. Qf2 {[%clk 0:14:29.6]} 6... e5 {[%clk 0:14:49.9]}
7. Bg5 {[%clk 0:14:25.3]} 7... h6 {[%clk 0:14:42.3]} 8. Bh4 {[%clk 0:14:12.7]}
8... Be7 {[%clk 0:14:41.5]} 9. Qg3 {[%clk 0:14:02.5]} 9... O-O {[%clk
0:14:35.9]} 10. O-O-O {[%clk 0:13:33.5]} 10... Nxe4 {[%clk 0:14:21.2]} 11. Nxe4
{[%clk 0:13:27]} 11... Bxh4 {[%clk 0:14:18.9]} 12. Nf6+ {[%clk 0:13:16.3]} 12...
Qxf6 {[%clk 0:14:19]} 13. Qg4 {[%clk 0:13:15.1]} 13... d5 {[%clk 0:14:06.7]} 14.
Rxd5 {[%clk 0:13:03.5]} 14... Bxg4 {[%clk 0:14:08.6]} 15. fxg4 {[%clk
0:13:01.1]} 15... Qxf1+ {[%clk 0:14:10.2]} 16. Rd1 {[%clk 0:12:57.5]} 16... Bg5+
{[%clk 0:14:13.3]} 17. Kb1 {[%clk 0:12:47.9]} 17... Qxd1# {[%clk 0:14:16.4]} 0-1

[Event "Live Chess"]
[Site "Chess.com"]
[Date "2023.09.16"]
[Round "-"]
[White "CauaLopes12"]
[Black "lgomessc"]
[Result "1-0"]
[WhiteElo "1323"]
[BlackElo "1136"]
[TimeControl "900+5"]
[EndTime "7:09:45 PDT"]
[Termination "CauaLopes12 venceu por xeque-mate"]

1. e4 {[%clk 0:15:01.9]} 1... e5 {[%clk 0:15:03.2]} 2. Nf3 {[%clk 0:15:05.8]}
2... Nc6 {[%clk 0:15:05.8]} 3. Bc4 {[%clk 0:15:09.5]} 3... d6 {[%clk 0:15:02.8]}
4. h3 {[%clk 0:15:10.2]} 4... h6 {[%clk 0:15:02.2]} 5. c3 {[%clk 0:15:13.2]}
5... Nf6 {[%clk 0:15:04.3]} 6. d3 {[%clk 0:15:16.7]} 6... a6 {[%clk 0:15:00.8]}
7. Bb3 {[%clk 0:15:15.6]} 7... d5 {[%clk 0:14:21.9]} 8. exd5 {[%clk 0:15:11.6]}
8... Nxd5 {[%clk 0:14:23.4]} 9. O-O {[%clk 0:15:15.9]} 9... Nf4 {[%clk
0:14:13.4]} 10. Re1 {[%clk 0:15:16.4]} 10... Ng6 {[%clk 0:14:10.1]} 11. Nbd2
{[%clk 0:15:13.9]} 11... Bc5 {[%clk 0:14:09.8]} 12. Nf1 {[%clk 0:15:12.6]} 12...
O-O {[%clk 0:14:12.1]} 13. Ng3 {[%clk 0:15:13.4]} 13... Re8 {[%clk 0:14:11.9]}
14. Bc2 {[%clk 0:15:12.2]} 14... Nh4 {[%clk 0:13:41.4]} 15. Nxh4 {[%clk
0:15:06]} 15... Qxh4 {[%clk 0:13:43]} 16. Be3 {[%clk 0:14:57.9]} 16... Bxe3
{[%clk 0:13:44]} 17. Rxe3 {[%clk 0:15:01.4]} 17... Qf6 {[%clk 0:13:02.2]} 18. d4
{[%clk 0:14:56.9]} 18... Qd8 {[%clk 0:12:30.1]} 19. dxe5 {[%clk 0:14:53.8]}
19... Qxd1+ {[%clk 0:12:27.7]} 20. Rxd1 {[%clk 0:14:55.3]} 20... Rxe5 {[%clk
0:12:09.6]} 21. Rxe5 {[%clk 0:14:55.2]} 21... Nxe5 {[%clk 0:12:09.3]} 22. Rd8#
{[%clk 0:14:57.1]} 1-0

[Event "Live Chess"]
[Site "Chess.com"]
[Date "2023.09.16"]
[Round "-"]
[White "isanamie12"]
[Black "guilhermemazza"]
[Result "1-0"]
[WhiteElo "804"]
[BlackElo "464"]
[TimeControl "900+5"]
[EndTime "7:10:10 PDT"]
[Termination "isanamie12 venceu por desistência"]

1. d4 {[%clk 0:15:01.5]} 1... d5 {[%clk 0:15:02.9]} 2. c4 {[%clk 0:15:05.2]}
2... dxc4 {[%clk 0:15:06.1]} 3. e4 {[%clk 0:15:08.4]} 3... c5 {[%clk 0:14:59]}
4. d5 {[%clk 0:15:06.1]} 4... e6 {[%clk 0:14:56.6]} 5. Bxc4 {[%clk 0:15:07.2]}
5... exd5 {[%clk 0:14:58.1]} 6. exd5 {[%clk 0:15:07.7]} 6... Nd7 {[%clk
0:14:58.5]} 7. Nf3 {[%clk 0:15:08.5]} 7... Ngf6 {[%clk 0:14:51.1]} 8. O-O {[%clk
0:14:40.6]} 8... Ne5 {[%clk 0:14:33.4]} 9. Re1 {[%clk 0:14:33.5]} 9... Be7
{[%clk 0:14:23.6]} 10. Nxe5 {[%clk 0:14:29.7]} 10... Bd6 {[%clk 0:14:25.1]} 11.
Bb5+ {[%clk 0:14:25]} 11... Bd7 {[%clk 0:14:23.7]} 12. Bxd7+ {[%clk 0:14:26.2]}
12... Qxd7 {[%clk 0:14:26.9]} 13. Nxd7+ {[%clk 0:14:28.5]} 1-0